bitfinex-derivatives/quotes_BNBF0:USTF0_20260221
["timestamp","ask_amount","ask_price","bid_price","bid_amount"]
[1771655568212,1.18355456,626.23,625.58,1.224]
[1771655571114,1.18355456,626.24,625.58,1.224]
[1771655575118,1.18355456,626.25,625.58,1.224]
[1771655577832,1.18355456,626.2,625.58,1.224]
[1771655578025,1.18355456,626.19,625.58,1.224]
[1771655578219,1.18355456,626.2,625.58,1.224]
[1771655580726,1.18355456,626.23,625.58,1.224]
[1771655581025,1.18355456,626.26,625.58,1.224]
[1771655582723,1.18355456,626.26,625.53,1.18974475]
[1771655585434,1.18355456,626.26,625.54,1.153]
[1771655588130,1.18355456,626.25,625.54,1.153]
[1771655592133,1.18355456,626.24,625.54,1.153]
[1771655596132,1.18355456,626.23,625.54,1.153]
[1771655596932,1.18355456,626.24,625.54,1.153]
[1771655597237,1.18355456,626.23,625.54,1.153]
[1771655598136,1.18355456,626.23,625.54,2.34274475]
[1771655599139,1.18355456,626.22,625.54,2.34274475]
[1771655600340,1.18355456,626.22,625.55,1.18974475]
[1771655601147,1.18355456,626.21,625.55,1.18974475]
[1771655602139,1.18355456,626.21,625.56,1.18974475]
[1771655603143,1.18355456,626.2,625.57,1.18974475]
[1771655604141,1.18355456,626.19,625.58,1.18974475]
[1771655605144,1.18355456,626.18,625.59,1.18974475]
[1771655606144,1.18355456,626.17,625.6,1.18974475]
[1771655606645,1.18355456,626.08,625.54,1.153]
[1771655617559,1.18355456,626.08,625.41,1.59091336]
[1771655619155,1.58854061,626.19,625.41,1.59091336]
[1771655619156,1.18355456,626.07,625.41,1.59091336]
[1771655621555,1.18355456,626.07,625.42,1.079]
[1771655623860,1.18355456,626.06,625.42,1.079]
[1771655636566,1.18355456,626.11,625.58,1.19877657]
[1771655666593,1.18355456,626.12,625.59,1.19877657]
[1771655667894,1.18355456,626.12,625.6,1.324]
[1771655696127,1.18355456,626.17,625.65,1.19877657]
[1771655696320,1.18355456,626.28,625.7,1.19877657]
[1771655696524,1.18355456,626.29,625.71,1.19877657]
[1771655696724,1.18355456,626.31,625.74,1.19877657]
[1771655697425,1.18355456,626.33,625.73,1.19877657]
[1771655698421,1.18355456,626.33,625.72,1.19877657]
[1771655699125,1.18355456,626.35,625.74,1.19877657]
[1771655699321,1.18355456,626.37,625.74,1.19877657]
[1771655699627,1.18355456,626.38,625.75,1.19877657]
[1771655701427,1.18355456,626.38,625.74,1.19877657]
[1771655701622,1.18355456,626.37,625.72,1.19877657]
[1771655702426,1.18355456,626.37,625.71,1.19877657]
[1771655703121,1.18355456,626.38,625.71,1.19877657]
[1771655704827,1.18355456,626.27,625.6,1.19877657]
[1771655705127,1.18355456,626.27,625.72,1.449]
[1771655707330,1.18355456,626.25,625.72,1.449]
[1771655722143,1.58854061,626.36,625.72,1.449]
[1771655722144,1.18355456,626.24,625.72,1.449]
[1771655722343,1.18355456,626.25,625.72,1.449]
[1771655723145,1.18355456,626.24,625.72,1.449]
[1771655725245,1.18355456,626.23,625.72,1.449]
[1771655726153,1.18355456,626.16,625.72,1.449]
[1771655727347,1.18355456,626.15,625.72,1.449]
[1771655727646,0.27799302,626.47,625.72,1.449]
[1771655727647,1.18355456,626.1,625.72,1.449]
[1771655728242,1.18355456,626.06,625.72,1.449]
[1771655729146,1.18355456,626.07,625.72,1.449]
[1771655730146,1.18355456,626.08,625.72,1.449]
[1771655733143,1.18355456,626.09,625.72,1.449]
[1771655734049,1.18355456,626.11,625.72,1.449]
[1771655734250,1.18355456,626.16,625.72,1.449]
[1771655736050,1.18355456,626.17,625.72,1.449]
[1771655739353,1.18355456,626.18,625.72,1.449]
[1771655741955,1.18355456,626.2,625.72,1.449]
[1771655743353,1.18355456,626.19,625.72,1.449]
[1771655746358,1.18355456,626.18,625.72,1.449]
[1771655748154,1.18355456,626.17,625.72,1.449]
[1771655749058,1.18355456,626.15,625.72,1.449]
[1771655752162,1.18355456,626.14,625.72,1.449]
[1771655758068,1.18355456,626.14,625.44,1.19877657]
[1771655758364,1.18355456,626.13,625.44,1.19877657]
[1771655760170,1.18355456,626.13,625.45,1.19877657]
[1771655760867,1.18355456,626.13,625.46,1.302]
[1771655762771,1.18355456,626.14,625.46,2.50077657]
[1771655763277,1.18355456,626.13,625.46,2.50077657]
[1771655764066,1.18355456,626.13,625.47,1.19877657]
[1771655764768,1.18355456,626.15,625.49,1.19877657]
[1771655764972,1.18355456,626.25,625.59,1.19877657]
[1771655767168,1.18355456,626.26,625.59,1.19877657]
[1771655767470,1.18355456,626.26,625.6,1.19877657]
[1771655769276,1.18355456,626.27,625.6,1.19877657]
[1771655771080,1.18355456,626.28,625.6,1.19877657]
[1771655773180,1.18355456,626.29,625.59,1.19877657]
[1771655775676,1.18355456,626.29,625.6,1.603]
[1771655782083,1.18355456,626.28,625.6,1.603]
[1771655786686,1.18355456,626.29,625.6,1.603]
[1771655787386,1.18355456,626.25,625.6,1.603]
[1771655787786,1.18355456,626.23,625.6,1.603]
[1771655788086,1.18355456,626.18,625.6,1.603]
[1771655794184,1.18355456,626.17,625.6,1.603]
[1771655803293,1.18355456,626.16,625.6,1.603]
[1771655806900,1.18355456,626.16,625.49,1.19877657]
[1771655809403,1.18355456,626.16,625.5,1.326]
[1771655811806,1.18355456,626.22,625.56,1.19877657]
[1771655819109,1.18355456,626.22,625.57,1.19877657]
[1771655819505,1.18355456,626.2,625.55,1.19877657]
[1771655820905,1.18355456,626.18,625.53,1.19877657]
[1771655821210,1.18355456,626.18,625.54,1.19877657]
[1771655821905,1.18355456,626.17,625.53,1.19877657]
[1771655822506,1.18355456,626.16,625.52,1.19877657]
[1771655822710,1.18355456,626.13,625.5,1.326]
[1771655825109,1.18355456,626.12,625.5,1.326]
[1771655829118,1.18355456,626.12,625.5,2.52477657]
[1771655830117,1.18355456,626.11,625.5,2.52477657]
[1771655832218,1.18355456,626.11,625.51,1.19877657]
[1771655840122,1.18355456,626.11,625.5,1.326]
[1771655840123,1.18355456,626.11,625.5,2.52477657]
[1771655840327,1.18355456,626.11,625.51,1.19877657]
[1771655841123,1.18355456,626.11,625.5,2.52477657]
[1771655846531,1.18355456,626.11,625.5,1.19877657]
[1771655846729,1.18355456,626.09,625.48,1.19877657]
[1771655850027,1.18355456,626.09,625.49,1.406]
[1771655857134,1.18355456,626.08,625.49,1.406]
[1771655858937,1.18355456,626.0,625.49,1.406]
[1771655859439,1.18355456,626.01,625.49,1.406]
[1771655860137,1.18355456,626.0,625.49,1.406]
[1771655860337,1.18355456,626.01,625.49,1.406]
[1771655861136,1.18355456,626.0,625.49,1.406]
[1771655861339,1.58854061,626.12,625.49,1.406]
[1771655861340,1.18355456,626.01,625.49,1.406]
[1771655861941,1.18355456,625.96,625.49,1.406]
[1771655862142,1.18355456,625.95,625.49,1.406]
[1771655862342,1.18355456,625.96,625.49,1.406]
[1771655863242,1.18355456,625.97,625.49,1.406]
[1771655864141,1.58854061,626.08,625.49,1.406]
[1771655864142,1.18355456,625.96,625.49,1.406]
[1771655864344,1.18355456,625.97,625.49,1.406]
[1771655866247,1.18355456,625.98,625.49,1.406]
[1771655866646,1.18355456,625.97,625.49,1.406]
[1771655867249,1.18355456,625.98,625.49,1.406]
[1771655870256,1.18355456,625.99,625.49,1.406]
[1771655875155,1.18355456,626.0,625.49,1.406]
[1771655889165,1.18355456,625.99,625.49,1.406]
[1771655890065,1.18355456,625.99,625.31,1.19877657]
[1771655892263,1.18355456,626.0,625.33,1.19877657]
[1771655893563,1.18355456,626.0,625.34,1.439]
[1771655896162,1.18355456,626.0,625.34,2.63777657]
[1771655896367,1.18355456,626.0,625.35,1.19877657]
[1771655898165,1.18355456,625.99,625.35,1.19877657]
[1771655899266,1.18355456,625.99,625.36,1.19877657]
[1771655899470,1.18980982,625.99,625.36,1.19708918]
[1771655900271,1.18980982,625.98,625.37,1.19708918]
[1771655902170,1.18980982,625.97,625.37,1.19708918]
[1771655902370,1.18980982,625.97,625.38,1.19708918]
[1771655903476,2.38279955,626.19,625.34,1.439]
[1771655903477,1.18980982,625.96,625.39,1.19708918]
[1771655905279,1.18980982,625.95,625.39,1.19708918]
[1771655906281,1.18980982,625.95,625.4,1.19708918]
[1771655912180,1.18980982,625.95,625.41,1.686]
[1771655912881,1.18980982,625.93,625.41,1.686]
[1771655913080,1.18980982,625.92,625.41,1.686]
[1771655915685,1.58854061,626.04,625.41,1.686]
[1771655915885,1.19132012,625.92,625.41,1.686]
[1771655924192,1.19132012,625.93,625.41,1.686]
[1771655925389,1.19132012,625.96,625.41,1.686]
[1771655936909,1.19132012,625.95,625.41,1.686]
[1771655938511,1.19132012,625.99,625.43,1.19873401]
[1771655939207,1.19132012,626.0,625.43,1.19873401]
[1771655940614,1.19132012,626.06,625.49,1.19873401]
[1771655941107,1.19132012,626.07,625.49,1.19873401]
[1771655941308,1.19132012,626.07,625.48,1.19873401]
[1771655942312,1.19132012,626.08,625.47,1.19873401]
[1771655944410,1.19132012,626.09,625.46,1.19873401]
[1771655947212,1.19132012,626.09,625.45,1.19873401]
[1771655947417,1.19132012,626.1,625.45,1.19873401]
[1771655950317,1.19132012,626.1,625.44,1.19873401]
[1771655951221,1.19132012,626.11,625.44,1.19873401]
[1771655956530,1.19132012,626.11,625.43,1.19873401]
[1771655957133,1.19132012,626.12,625.43,1.19873401]
[1771655962141,1.19132012,626.11,625.43,1.19873401]
[1771655963235,1.19132012,626.11,625.44,1.19873401]
[1771655967343,1.19132012,626.11,625.45,1.19873401]
[1771655967537,1.19132012,626.11,625.44,1.19873401]
[1771655968244,1.19132012,626.11,625.45,1.19873401]
[1771655970148,1.19132012,626.1,625.45,1.19873401]
[1771655972449,1.19132012,626.1,625.46,1.19873401]
[1771655973147,1.19132012,626.1,625.47,1.241]
[1771655975247,1.19132012,626.09,625.47,1.241]
[1771655977250,1.19132012,626.09,625.47,2.43973401]
[1771655979153,1.19132012,626.08,625.47,2.43973401]
[1771655980156,1.19132012,626.08,625.48,1.19873401]
[1771655981156,2.38279955,626.3,625.48,1.19873401]
[1771655981157,1.19132012,626.07,625.48,1.19873401]
[1771655982257,1.19132012,626.07,625.49,1.19873401]
[1771655982457,1.19132012,626.06,625.49,1.19873401]
[1771655983154,1.19132012,626.05,625.5,1.19873401]
[1771655984154,1.19132012,626.04,625.51,1.19873401]
[1771656000370,1.19132012,625.98,625.47,1.241]
[1771656001269,1.19132012,625.99,625.47,1.241]
[1771656002375,1.19132012,626.0,625.47,1.241]
[1771656002572,1.19132012,626.03,625.47,2.43973401]
[1771656003269,1.19132012,626.06,625.5,1.19873401]
[1771656003775,1.19132012,626.09,625.53,1.19873401]
[1771656004275,1.19132012,626.11,625.55,1.19873401]
[1771656005371,1.19132012,626.12,625.55,1.19873401]
[1771656006476,1.19132012,626.12,625.54,1.19873401]
[1771656006776,1.19132012,626.12,625.55,1.19873401]
[1771656006975,1.19132012,626.14,625.57,1.19873401]
[1771656007276,1.19132012,626.15,625.56,1.19873401]
[1771656008783,1.19132012,626.24,625.65,1.19873401]
[1771656009379,1.19132012,626.25,625.64,1.19873401]
[1771656010484,1.19132012,626.26,625.63,1.19873401]
[1771656011285,1.19132012,626.27,625.62,1.19873401]
[1771656012285,1.19132012,626.27,625.61,1.19873401]
[1771656013485,1.19132012,626.28,625.61,1.19873401]
[1771656014283,1.19132012,626.28,625.6,1.19873401]
[1771656015288,1.19132012,626.29,625.6,1.19873401]
[1771656017284,1.19132012,626.29,625.48,1.59091336]
[1771656017285,1.19132012,626.29,625.59,1.19873401]
[1771656019286,1.19132012,626.3,625.59,1.19873401]
[1771656020287,1.19132012,626.3,625.58,1.19873401]
[1771656024386,1.19132012,626.31,625.58,1.19873401]
[1771656025886,1.19132012,626.31,625.59,1.614]
[1771656026986,1.19132012,626.32,625.59,2.81273401]
[1771656028189,0.27803855,626.43,625.59,1.614]
[1771656029589,0.27803855,626.43,625.59,2.80807977]
[1771656029590,1.18877778,626.32,625.59,2.80807977]
[1771656031689,1.18877778,626.42,625.69,1.19407977]
[1771656033292,1.18877778,626.43,625.68,1.19407977]
[1771656044301,1.18877778,626.42,625.69,1.19407977]
[1771656046305,1.18877778,626.42,625.7,1.19407977]
[1771656046802,1.18877778,626.41,625.7,1.19407977]
[1771656047306,1.18877778,626.4,625.71,1.19407977]
[1771656050507,1.18877778,626.39,625.72,1.19407977]
[1771656052305,1.18877778,626.39,625.61,1.59210636]
[1771656052306,1.18877778,626.38,625.73,1.19407977]
[1771656057018,1.18877778,626.35,625.7,1.19407977]
[1771656058420,1.18877778,626.35,625.71,1.19407977]
[1771656062122,1.18877778,626.37,625.73,1.19407977]
[1771656062322,1.19052802,626.43,625.79,1.19567185]
[1771656063221,1.19052802,626.44,625.78,1.19567185]
[1771656063425,1.19052802,626.44,625.79,1.19567185]
[1771656064127,1.19052802,626.44,625.8,1.274]
[1771656066328,1.19052802,626.45,625.8,1.274]
[1771656066528,1.19052802,626.5,625.84,1.19567185]
[1771656068230,1.19052802,626.51,625.83,1.19567185]
[1771656070633,1.19052802,626.5,625.82,1.19567185]
[1771656072236,1.19052802,626.48,625.8,1.274]
[1771656072437,1.19052802,626.48,625.8,2.46967185]
[1771656074340,1.19052802,626.47,625.8,2.46967185]
[1771656076338,1.19052802,626.47,625.81,1.19567185]
[1771656079243,1.19052802,626.47,625.8,2.46967185]
[1771656086253,1.19052802,626.39,625.8,1.274]
[1771656093068,1.19052802,626.39,625.73,1.19567185]
[1771656095368,1.19052802,626.38,625.73,1.19567185]
[1771656097067,1.19052802,626.38,625.74,1.528]
[1771656101271,1.19052802,626.38,625.74,2.72367185]
[1771656108679,1.19052802,626.42,625.79,1.19567185]
[1771656111185,1.19052802,626.42,625.78,1.19567185]
[1771656111480,1.19052802,626.42,625.74,1.528]
[1771656111481,1.19052802,626.42,625.79,1.19567185]
[1771656117093,1.19052802,626.41,625.79,1.19567185]
[1771656118486,1.19052802,626.41,625.8,1.19567185]
[1771656121691,1.19052802,626.41,625.81,1.679]
[1771656124296,1.19052802,626.4,625.81,1.679]
[1771656127393,1.19052802,626.4,625.81,2.87467185]
[1771656131303,1.19052802,626.39,625.81,2.87467185]
[1771656143207,1.19052802,626.39,625.82,1.19567185]
[1771656147115,1.19052802,626.38,625.82,1.19567185]
[1771656151223,1.19052802,626.37,625.82,1.19567185]
[1771656152214,1.19052802,626.37,625.83,1.19567185]
[1771656153313,1.19052802,626.36,625.84,1.19567185]
[1771656157017,1.19052802,626.36,625.85,1.543]
[1771656169127,1.19052802,626.36,625.84,1.19567185]
[1771656171830,1.19052802,626.35,625.83,1.19567185]
[1771656173028,1.19052802,626.35,625.84,1.521]
[1771656174328,1.19052802,626.36,625.84,1.521]
[1771656182630,1.19052802,626.31,625.84,1.521]
[1771656184232,1.19052802,626.32,625.84,1.521]
[1771656188435,1.19052802,626.33,625.84,1.521]
[1771656194334,1.19052802,626.32,625.84,1.521]
[1771656194538,1.19052802,626.29,625.84,1.521]
[1771656195239,1.19052802,626.3,625.84,1.521]
[1771656198843,1.19131578,626.3,625.84,1.521]
[1771656199241,1.19131578,626.31,625.84,1.521]
[1771656202853,1.19131578,626.3,625.84,1.521]
[1771656203148,1.19131578,626.24,625.84,1.521]
[1771656204253,1.19131578,626.25,625.84,1.521]
[1771656207350,1.58503705,626.37,625.84,1.521]
[1771656207351,1.19131578,626.26,625.84,1.521]
[1771656210257,1.19131578,626.27,625.84,1.521]
[1771656213962,1.19131578,626.27,625.58,1.19673988]
[1771656217762,1.19131578,626.27,625.59,1.712]
[1771656221361,1.19131578,626.26,625.59,1.712]
[1771656222363,1.19131578,626.26,625.59,2.90873988]
[1771656227265,1.19131578,626.25,625.6,1.19673988]
[1771656233268,1.19131578,626.24,625.61,1.19673988]
[1771656237277,1.19131578,626.23,625.62,1.19673988]
[1771656239374,1.19131578,626.22,625.62,1.19673988]
[1771656240478,1.19131578,626.22,625.63,1.19673988]
[1771656243281,1.19131578,626.21,625.63,1.19673988]
[1771656244280,1.19131578,626.21,625.64,1.19673988]
[1771656246281,1.19131578,626.2,625.65,1.19673988]
[1771656247286,1.19131578,626.19,625.66,1.19673988]
[1771656264809,1.19131578,626.15,625.63,1.19673988]
[1771656265206,1.19131578,626.16,625.62,1.19673988]
[1771656265407,1.19131578,626.16,625.64,1.431]
[1771656268306,1.19131578,626.17,625.64,1.431]
[1771656272013,1.19131578,626.11,625.64,1.431]
[1771656273115,1.19131578,626.12,625.64,1.431]
[1771656273319,1.19131578,626.11,625.64,1.431]
[1771656274121,1.19131578,626.12,625.64,1.431]
[1771656277220,1.19131578,626.13,625.64,1.431]
[1771656281226,1.19131578,626.14,625.64,1.431]
[1771656293035,1.19131578,626.13,625.64,1.431]
[1771656304240,1.19131578,626.12,625.64,1.431]
[1771656308247,1.19131578,626.11,625.64,1.431]
[1771656311255,1.19131578,626.1,625.64,1.431]
[1771656315160,1.19131578,626.09,625.64,1.431]
[1771656316262,1.19131578,626.08,625.64,1.431]
[1771656319362,1.19131578,626.08,625.54,1.19673988]
[1771656323466,1.19131578,626.08,625.55,1.718]
[1771656334070,1.19131578,626.08,625.55,2.91473988]
[1771656340281,1.19131578,626.07,625.55,2.91473988]
[1771656340481,1.19131578,626.07,625.55,1.718]
[1771656354588,1.19131578,626.07,625.53,1.19673988]
[1771656357293,1.19131578,626.08,625.54,1.19673988]
[1771656358795,1.19131578,626.08,625.55,1.399]
[1771656363698,1.19131578,626.06,625.55,1.399]
[1771656372405,1.19131578,626.07,625.55,1.399]
[1771656376908,1.19131578,626.06,625.55,1.399]
[1771656384217,1.19131578,626.05,625.55,1.399]
[1771656384417,1.19131578,626.0,625.55,1.399]
[1771656385319,1.19131578,626.01,625.55,1.399]
[1771656389622,1.19131578,626.04,625.55,1.399]
[1771656395824,1.19131578,626.04,625.44,1.19673988]
[1771656399227,1.19131578,626.04,625.45,1.347]
[1771656402132,1.19131578,626.0,625.45,1.347]
[1771656402529,1.19131578,626.02,625.45,1.347]
[1771656407433,1.19131578,626.05,625.45,2.54373988]
[1771656409232,0.27801856,626.4,625.46,1.19673988]
[1771656409233,1.19131578,626.06,625.46,1.19673988]
[1771656410534,1.19131578,626.06,625.47,1.19673988]
[1771656410739,1.19131578,626.15,625.56,1.19673988]
[1771656411335,1.19131578,626.16,625.56,1.19673988]
[1771656412341,1.19131578,626.16,625.55,1.19673988]
[1771656413336,1.19131578,626.17,625.55,1.19673988]
[1771656414340,1.19131578,626.17,625.54,1.19673988]
[1771656416344,1.19131578,626.18,625.54,1.19673988]
[1771656418343,1.19131578,626.18,625.53,1.19673988]
[1771656421651,1.19131578,626.19,625.53,1.19673988]
[1771656423348,1.19131578,626.19,625.52,1.19673988]
[1771656426353,1.19131578,626.2,625.52,1.19673988]
[1771656435156,1.19131578,626.23,625.55,1.19673988]
[1771656435460,1.19131578,626.38,625.68,1.19673988]
[1771656436560,1.19131578,626.39,625.67,1.19673988]
[1771656437456,1.19131578,626.39,625.66,1.19673988]
[1771656438357,1.19131578,626.4,625.66,1.19673988]
[1771656439358,1.19131578,626.4,625.65,1.19673988]
[1771656439763,1.19131578,626.44,625.68,1.19673988]
[1771656440260,1.19131578,626.46,625.71,1.19673988]
[1771656440464,1.19131578,626.47,625.7,1.19673988]
[1771656441362,1.19131578,626.48,625.69,1.19673988]
[1771656443260,1.19131578,626.48,625.68,1.19673988]
[1771656444369,1.19131578,626.49,625.68,1.19673988]
[1771656445369,1.19131578,626.49,625.67,1.19673988]
[1771656447365,1.19131578,626.51,625.69,1.19673988]
[1771656447669,1.19131578,626.5,625.68,1.19673988]
[1771656449471,1.19131578,626.5,625.69,1.815]
[1771656449971,1.19131578,626.49,625.69,1.815]
[1771656450269,1.19131578,626.45,625.69,1.815]
[1771656451472,1.19131578,626.44,625.69,1.815]
[1771656452268,1.19131578,626.45,625.69,1.815]
[1771656452472,1.19131578,626.44,625.69,1.815]
[1771656454270,1.19131578,626.43,625.69,1.815]
[1771656461279,1.19131578,626.42,625.69,1.815]
[1771656461575,1.19131578,626.41,625.69,1.815]
[1771656462276,1.19131578,626.36,625.69,1.815]
[1771656464381,1.19131578,626.35,625.69,1.815]
[1771656468381,1.19131578,626.34,625.69,1.815]
[1771656472286,1.58503705,626.45,625.69,1.815]
[1771656472287,1.19131578,626.33,625.69,1.815]
[1771656475385,1.19131578,626.32,625.69,1.815]
[1771656477289,1.19131578,626.31,625.69,1.815]
[1771656478897,1.19131578,626.3,625.69,1.815]
[1771656479093,1.19131578,626.17,625.69,1.815]
[1771656479297,1.19131578,626.18,625.69,1.815]
[1771656479492,1.19131578,626.17,625.69,1.815]
[1771656481099,1.58503705,626.29,625.69,1.815]
[1771656481100,1.19131578,626.18,625.69,1.815]
[1771656482198,1.19131578,626.19,625.69,1.815]
[1771656483201,1.19131578,626.2,625.69,1.815]
[1771656485204,1.19131578,626.21,625.69,1.815]
[1771656485403,1.19131578,626.2,625.69,1.815]
[1771656486207,1.58503705,626.32,625.69,1.815]
[1771656486208,1.19131578,626.21,625.69,1.815]
[1771656500622,1.19131578,626.21,625.48,1.19673988]
[1771656501013,1.19131578,626.2,625.48,1.19673988]
[1771656501713,1.19131578,626.19,625.46,1.19673988]
[1771656502313,1.19131578,626.19,625.47,1.19673988]
[1771656503312,1.19131578,626.18,625.47,1.19673988]
[1771656503517,1.19131578,626.18,625.48,1.648]
[1771656505713,1.19131578,626.16,625.48,1.648]
[1771656507519,1.19131578,626.15,625.48,1.648]
[1771656515523,1.19131578,626.14,625.48,1.648]
[1771656517427,1.19131578,626.14,625.48,2.84473988]
[1771656518331,1.19131578,626.13,625.48,2.84473988]
[1771656519329,1.19131578,626.05,625.48,1.648]
[1771656519526,1.19131578,626.04,625.48,1.648]
[1771656520431,1.19131578,626.02,625.48,1.648]
[1771656521526,1.19131578,626.01,625.48,1.648]
[1771656523328,1.19131578,626.0,625.48,1.648]
[1771656524132,1.19131578,626.01,625.48,1.648]
[1771656526230,1.19131578,626.02,625.48,1.648]
[1771656529229,1.19131578,626.03,625.48,1.648]
[1771656533034,1.19131578,626.02,625.48,1.648]
[1771656536938,1.19131578,625.99,625.48,1.648]
[1771656538238,1.19131578,626.0,625.48,1.648]
[1771656543643,1.19131578,625.99,625.48,1.648]
[1771656549248,1.58503705,626.1,625.48,1.648]
[1771656549249,1.19131578,625.98,625.48,1.648]
[1771656549548,1.19131578,625.99,625.48,1.648]
[1771656549950,1.19131578,625.95,625.48,1.648]
[1771656550153,1.19131578,625.89,625.48,1.648]
[1771656550354,1.19131578,625.88,625.48,1.648]
[1771656551354,1.19131578,625.89,625.48,1.648]
[1771656554256,1.19131578,625.9,625.48,1.648]
[1771656554551,3.96259263,626.57,625.48,1.648]
[1771656554552,1.19131578,625.89,625.48,1.648]
[1771656557458,1.19131578,625.89,625.17,0.27813744]
[1771656561259,1.19131578,625.88,625.17,0.27813744]
[1771656561453,1.19131578,625.89,625.17,0.27813744]
[1771656561659,1.19131578,625.89,625.18,1.704]
[1771656562257,1.19131578,625.88,625.18,1.704]
[1771656564256,1.19131578,625.87,625.18,1.704]
[1771656572767,1.19131578,625.87,625.17,0.27813744]
[1771656575161,1.19131578,625.87,625.17,1.47487732]
[1771656575367,1.19131578,625.87,625.18,1.349]
[1771656576461,1.58503705,625.98,625.18,1.349]
[1771656576462,1.19131578,625.86,625.18,1.349]
[1771656579263,1.19131578,625.86,625.18,2.54573988]
[1771656580167,1.19131578,625.85,625.18,2.54573988]
[1771656582169,1.19131578,625.85,625.19,1.19673988]
[1771656583264,1.19131578,625.84,625.19,1.19673988]
[1771656587370,1.19131578,625.84,625.2,1.19673988]
[1771656588272,1.19131578,625.83,625.2,1.19673988]
[1771656589369,1.19131578,625.83,625.21,1.19673988]
[1771656590274,1.19131578,625.82,625.21,1.19673988]
[1771656590568,1.19131578,625.82,625.22,1.894]
[1771656591369,1.19131578,625.82,625.22,3.09073988]
[1771656592273,2.37755557,626.04,625.22,3.09073988]
[1771656592274,1.19131578,625.81,625.22,3.09073988]
[1771656593274,1.19131578,625.8,625.23,1.19673988]
[1771656594370,1.19131578,625.79,625.25,1.19673988]
[1771656594574,1.19131578,625.78,625.25,1.19673988]
[1771656596274,1.19131578,625.92,625.39,1.19673988]
[1771656596471,1.19131578,625.93,625.4,1.19673988]
[1771656597376,1.19131578,625.96,625.37,1.19673988]
[1771656597675,1.19131578,625.96,625.38,1.19673988]
[1771656598376,1.19131578,625.97,625.37,1.19673988]
[1771656599274,1.19131578,625.98,625.36,1.19673988]
[1771656601173,1.19131578,625.99,625.35,1.19673988]
[1771656603280,1.19131578,626.0,625.35,1.19673988]
[1771656603478,1.19131578,626.0,625.34,1.19673988]
[1771656605582,1.19131578,626.01,625.33,1.19673988]
[1771656608581,1.19131578,626.02,625.33,1.19673988]
[1771656609287,1.19131578,626.02,625.32,1.19673988]
[1771656609881,1.19131578,626.03,625.33,1.19673988]
[1771656612385,1.19131578,626.04,625.33,1.19673988]
[1771656614387,1.19131578,626.04,625.32,1.19673988]
[1771656619890,1.19131578,626.05,625.33,1.19673988]
[1771656620089,1.19131578,626.11,625.39,1.19673988]
[1771656620392,1.19131578,626.11,625.38,1.19673988]
[1771656621390,1.19131578,626.12,625.39,1.19673988]
[1771656623799,1.19131578,626.19,625.45,1.19673988]
[1771656624496,1.19131578,626.2,625.45,1.19673988]
[1771656625496,1.19131578,626.2,625.44,1.19673988]
[1771656626494,1.19131578,626.25,625.48,1.19673988]
[1771656627395,1.19131578,626.25,625.47,1.19673988]
[1771656627697,1.19131578,626.25,625.36,1.59210636]
[1771656627698,1.19131578,626.26,625.48,1.19673988]
[1771656629399,1.19131578,626.26,625.47,1.19673988]
[1771656630300,1.19131578,626.27,625.47,1.19673988]
[1771656631300,1.19131578,626.29,625.49,1.19673988]
[1771656631799,1.19131578,626.29,625.38,1.59210636]
[1771656631800,1.19131578,626.35,625.56,1.19673988]
[1771656632100,1.19131578,626.36,625.56,1.19673988]
[1771656632299,1.19131578,626.36,625.57,1.19673988]
[1771656632496,1.19131578,626.36,625.45,1.59210636]
[1771656632497,1.19131578,626.37,625.56,1.19673988]
[1771656632699,1.19131578,626.43,625.62,1.19673988]
[1771656633300,1.19131578,626.44,625.61,1.19673988]
[1771656633796,0.27793751,626.62,625.64,1.19673988]
[1771656633797,1.19131578,626.47,625.64,1.19673988]
[1771656634400,1.19131578,626.48,625.63,1.19673988]
[1771656635502,1.19131578,626.49,625.62,1.19673988]
[1771656636302,1.19131578,626.5,625.64,1.19673988]
[1771656636599,1.19131578,626.51,625.63,1.19673988]
[1771656637303,1.19131578,626.51,625.62,1.19673988]
[1771656638302,1.19131578,626.51,625.63,1.19673988]
[1771656638502,1.19131578,626.52,625.62,1.19673988]
[1771656639304,1.19131578,626.51,625.62,1.19673988]
[1771656639600,1.19131578,626.52,625.62,1.19673988]
[1771656642304,1.19131578,626.52,625.61,1.19673988]
[1771656642504,1.19131578,626.53,625.61,1.19673988]
[1771656644309,1.19131578,626.53,625.6,1.19673988]
[1771656644911,1.19131578,626.51,625.58,1.19673988]